bitfinex/quotes_BTCUSD_20250119
["timestamp","ask_amount","ask_price","bid_price","bid_amount"]
[1737273105447,3.7e-07,105090.0,105080.0,2.04267339]
[1737273106249,3.7e-07,105090.0,105080.0,1.57807339]
[1737273106699,3.7e-07,105090.0,105080.0,1.58104847]
[1737273106899,6.6e-07,105110.0,105100.0,0.552357]
[1737273107106,6.6e-07,105110.0,105100.0,0.8601007]
[1737273107317,6.6e-07,105110.0,105100.0,0.88814793]
[1737273107920,6.6e-07,105110.0,105100.0,0.89366793]
[1737273108423,6.6e-07,105110.0,105100.0,1.7993189]
[1737273108764,6.6e-07,105110.0,105100.0,1.00304589]
[1737273108966,6.6e-07,105110.0,105100.0,1.08424878]
[1737273109173,6.6e-07,105110.0,105100.0,1.44799475]
[1737273109579,6.6e-07,105110.0,105100.0,2.66959761]
[1737273109772,6.6e-07,105110.0,105100.0,2.67863239]
[1737273110012,6.6e-07,105110.0,105100.0,2.32932953]
[1737273110225,6.6e-07,105110.0,105100.0,2.03568356]
[1737273110610,6.6e-07,105110.0,105100.0,1.55268511]
[1737273110818,6.6e-07,105110.0,105100.0,0.94360511]
[1737273111015,6.6e-07,105110.0,105100.0,0.94749905]
[1737273111216,0.07770066,105110.0,105100.0,0.84749905]
[1737273111496,0.07770066,105110.0,105100.0,0.70301905]
[1737273111747,0.07770066,105110.0,105100.0,0.85301905]
[1737273112830,0.07770066,105110.0,105100.0,0.84398427]
[1737273114788,0.07770066,105110.0,105100.0,0.94398427]
[1737273115423,0.07770066,105110.0,105100.0,0.51618427]
[1737273122620,0.07770066,105110.0,105100.0,0.89708427]
[1737273122621,6.6e-07,105110.0,105100.0,0.89708427]
[1737273122750,6.6e-07,105110.0,105100.0,0.90791258]
[1737273122962,6.6e-07,105110.0,105100.0,1.39091103]
[1737273123347,6.6e-07,105110.0,105100.0,1.41540266]
[1737273124899,6.6e-07,105110.0,105100.0,1.41827686]
[1737273125037,0.08129943,105130.0,105120.0,0.38354189]
[1737273125239,0.0817977,105130.0,105120.0,0.4827827]
[1737273125815,0.0817977,105130.0,105120.0,0.50122571]
[1737273128457,0.0817977,105130.0,105120.0,0.51312361]
[1737273130423,0.0817977,105130.0,105120.0,0.52284642]
[1737273130842,0.0817977,105130.0,105120.0,0.53548117]
[1737273140062,0.0817977,105130.0,105120.0,0.44875828]
[1737273140264,0.1305977,105130.0,105120.0,0.44875828]
[1737273141084,0.1305977,105130.0,105120.0,0.45351797]
[1737273141672,0.1305977,105130.0,105120.0,0.4457832]
[1737273142269,0.1305977,105130.0,105120.0,0.45351784]
[1737273143255,0.1305977,105130.0,105120.0,0.34951725]
[1737273143691,0.1305977,105130.0,105120.0,0.6255688]
[1737273143891,0.01238113,105140.0,105130.0,0.15233]
[1737273144091,0.01253055,105140.0,105130.0,0.35907656]
[1737273144300,0.60997077,105140.0,105130.0,0.35907656]
[1737273144539,0.60997077,105140.0,105130.0,0.38644228]
[1737273145142,0.01253055,105140.0,105130.0,0.36311428]
[1737273147018,0.13953055,105140.0,105130.0,0.36311428]
[1737273148707,0.13953055,105140.0,105130.0,0.36787334]
[1737273149412,0.13953055,105140.0,105130.0,0.28667045]
[1737273150703,0.13953055,105140.0,105130.0,0.16601312]
[1737273151019,0.35289726,105140.0,105130.0,0.10880312]
[1737273151664,0.35289726,105140.0,105130.0,0.2510692]
[1737273152230,0.52360328,105140.0,105130.0,0.2510692]
[1737273152431,0.52360328,105140.0,105130.0,0.1010692]
[1737273152636,0.52360328,105140.0,105130.0,0.2510692]
[1737273152832,0.52360328,105140.0,105130.0,0.4886429]
[1737273153130,0.52360328,105140.0,105130.0,0.4826937]
[1737273153700,0.52360328,105140.0,105130.0,0.48864354]
[1737273154495,0.22487677,105140.0,105130.0,0.49816255]
[1737273154902,0.22487677,105140.0,105130.0,0.50113724]
[1737273155651,0.52360328,105140.0,105130.0,0.50113724]
[1737273156094,0.52360328,105140.0,105130.0,0.29400724]
[1737273156243,0.52360328,105140.0,105130.0,0.44400724]
[1737273156763,0.52360328,105140.0,105130.0,0.44103255]
[1737273157187,0.52360328,105140.0,105130.0,0.44400734]
[1737273157560,0.52360328,105140.0,105130.0,0.36280445]
[1737273157958,0.73697077,105140.0,105130.0,0.36280445]
[1737273159340,0.73697077,105140.0,105130.0,0.36153483]
[1737273159519,0.73786789,105140.0,105130.0,0.36153483]
[1737273159731,0.73786789,105140.0,105130.0,0.35201582]
[1737273160083,0.73786789,105140.0,105130.0,0.25277501]
[1737273160656,0.65252167,105140.0,105130.0,0.25277501]
[1737273161877,0.52450118,105140.0,105130.0,0.25277501]
[1737273165002,0.54370367,105140.0,105130.0,0.25277501]
[1737273165807,0.54370367,105140.0,105130.0,0.26229454]
[1737273165986,0.54370367,105140.0,105130.0,0.31942454]
[1737273166196,0.67187204,105140.0,105130.0,0.31942454]
[1737273167539,0.67187204,105140.0,105130.0,0.30990501]
[1737273171143,0.67187204,105140.0,105130.0,0.31942459]
[1737273171682,0.67187204,105140.0,105130.0,0.26229459]
[1737273172430,0.54370367,105140.0,105130.0,0.25277501]
[1737273173325,0.54370367,105140.0,105130.0,0.24980022]
[1737273173557,0.62715525,105140.0,105130.0,0.24980022]
[1737273174678,0.68824302,105140.0,105130.0,0.24980022]
[1737273175881,0.37299765,105140.0,105130.0,0.24980022]
[1737273177216,0.37299765,105140.0,105130.0,0.25277521]
[1737273178214,0.62715525,105140.0,105130.0,0.25277521]
[1737273179642,0.41378776,105140.0,105130.0,0.3339781]
[1737273180159,0.34578527,105140.0,105130.0,0.49034891]
[1737273180367,0.26758527,105140.0,105130.0,0.49034891]
[1737273180571,0.26758527,105140.0,105130.0,0.49986868]
[1737273180896,0.18426197,105140.0,105130.0,0.49986868]
[1737273181471,0.18426197,105140.0,105130.0,0.51128224]
[1737273181673,0.18426197,105140.0,105130.0,0.53223584]
[1737273182006,0.18426197,105140.0,105130.0,0.53699502]
[1737273182160,0.01342767,105140.0,105130.0,0.53699502]
[1737273182675,0.01342767,105140.0,105130.0,0.52793923]
[1737273183687,0.13842767,105140.0,105130.0,0.14036553]
[1737273183928,0.13842767,105140.0,105130.0,0.14942132]
[1737273184639,0.65101507,105140.0,105130.0,0.28800776]
[1737273184838,0.65101507,105140.0,105130.0,0.25753439]
[1737273185060,0.65101507,105140.0,105130.0,0.25277521]
[1737273185241,0.65101507,105140.0,105130.0,0.10277521]
[1737273185917,0.35202336,105140.0,105130.0,0.25277521]
[1737273186759,0.66732186,105140.0,105130.0,0.25277521]
[1737273187605,0.66732186,105140.0,105130.0,0.24980022]
[1737273187929,0.60618096,105140.0,105130.0,0.24980022]
[1737273188132,0.62501563,105140.0,105130.0,0.24980022]
[1737273188541,0.6126345,105140.0,105130.0,0.24980022]
[1737273189984,0.59379983,105140.0,105130.0,0.30693022]
[1737273190196,0.54419983,105140.0,105130.0,0.38813311]
[1737273190604,0.33060414,105140.0,105130.0,0.38813311]
[1737273190760,0.33060414,105140.0,105130.0,0.48737392]
[1737273190969,0.25520414,105140.0,105130.0,0.48737392]
[1737273191778,0.38540771,105140.0,105130.0,0.49689324]
[1737273191978,0.38540771,105140.0,105130.0,0.5046277]
[1737273192643,0.5989417,105140.0,105130.0,0.5046277]
[1737273194691,0.51352811,105140.0,105130.0,0.5046277]
[1737273197107,0.59901765,105140.0,105130.0,0.5046277]
[1737273198080,0.59901765,105140.0,105130.0,0.51652558]
[1737273198421,0.08653608,105140.0,105130.0,0.51652558]
[1737273198828,0.08653608,105140.0,105130.0,0.52792718]
[1737273200921,0.00104654,105140.0,105130.0,0.52792718]
[1737273202018,0.00104654,105140.0,105130.0,0.51652558]
[1737273203797,0.00104654,105140.0,105130.0,0.67152844]
[1737273204949,0.00104654,105140.0,105130.0,0.69198583]
[1737273205781,0.08548954,105150.0,105140.0,0.20713]
[1737273205990,0.08548954,105150.0,105140.0,0.4826847]
[1737273206967,0.59887012,105160.0,105150.0,0.302232]
[1737273207192,0.59887012,105160.0,105150.0,0.4826757]
[1737273208047,0.21450894,105160.0,105150.0,0.4826757]
[1737273208264,0.21450894,105160.0,105150.0,0.48743537]
[1737273208467,0.21450894,105160.0,105150.0,0.49041016]
[1737273208686,0.21450894,105160.0,105150.0,0.49636]
[1737273209087,0.38533613,105160.0,105150.0,0.57916]
[1737273209518,0.38533613,105160.0,105150.0,0.49636]
[1737273210339,0.00089901,105160.0,105150.0,0.505877]
[1737273211545,0.16328855,105160.0,105150.0,0.37709122]
[1737273212615,0.29140894,105160.0,105150.0,0.37709122]
[1737273212961,0.29140894,105160.0,105150.0,0.36757422]
[1737273213164,0.29140894,105160.0,105150.0,0.44877711]
[1737273213704,0.46223613,105160.0,105150.0,0.44401744]
[1737273214923,0.29140894,105160.0,105150.0,0.44401744]
[1737273218215,0.46223613,105160.0,105150.0,0.44401744]
[1737273220916,0.46223613,105160.0,105150.0,0.34477663]
[1737273221250,0.46223613,105160.0,105150.0,0.26357374]
[1737273221605,0.50933613,105160.0,105150.0,0.26357374]
[1737273222822,0.50933613,105160.0,105150.0,0.34477663]
[1737273223406,0.72287012,105160.0,105150.0,0.34477663]
[1737273226862,0.72287012,105160.0,105150.0,0.34953561]
[1737273227281,0.72287012,105160.0,105150.0,0.35905357]
[1737273228700,0.67577012,105160.0,105150.0,0.35905357]
[1737273230070,0.59887012,105160.0,105150.0,0.35905357]
[1737273230275,0.59887012,105160.0,105150.0,0.45829438]
[1737273231093,0.59887012,105160.0,105150.0,0.51542438]
[1737273231246,0.59887012,105160.0,105150.0,0.45829438]
[1737273231441,0.21450894,105160.0,105150.0,0.49681733]
[1737273231845,0.21450894,105160.0,105150.0,0.5087141]
[1737273232735,0.21450894,105160.0,105150.0,0.51466256]
[1737273232939,0.38533613,105160.0,105150.0,0.51466256]
[1737273234067,0.21450894,105160.0,105150.0,0.51466256]
[1737273234237,0.21450894,105160.0,105150.0,0.69439256]
[1737273234434,0.21450894,105160.0,105150.0,0.72621542]
[1737273234668,0.21450894,105160.0,105150.0,0.72069542]
[1737273234856,0.21450894,105160.0,105150.0,0.72621542]
[1737273235297,0.00089901,105160.0,105150.0,0.72621542]
[1737273235874,0.00089901,105160.0,105150.0,0.72160127]
[1737273236031,0.00089901,105160.0,105150.0,0.73065706]
[1737273237467,0.00089901,105160.0,105150.0,0.69198677]
[1737273240065,0.00089901,105160.0,105150.0,0.77304232]
[1737273242192,0.00089901,105160.0,105150.0,0.69198677]
[1737273243129,0.00089901,105160.0,105150.0,0.53756391]
[1737273244288,0.00089901,105160.0,105150.0,0.5362296]
[1737273245097,0.00089901,105160.0,105150.0,0.52717381]
[1737273246300,0.00089901,105160.0,105150.0,0.55347667]
[1737273246910,0.00089901,105160.0,105150.0,0.55942435]
[1737273248319,0.00089901,105160.0,105150.0,0.5898841]
[1737273249100,1e-08,105160.0,105150.0,0.67093965]
[1737273250168,1e-08,105160.0,105150.0,0.69393965]
[1737273253035,1e-08,105160.0,105150.0,0.6128841]
[1737273253762,1e-08,105160.0,105150.0,0.60827073]
[1737273254341,1e-08,105160.0,105150.0,0.61732652]
[1737273254720,1e-08,105160.0,105150.0,0.69872652]
[1737273255093,1e-08,105160.0,105150.0,0.69739221]
[1737273256708,1e-08,105160.0,105150.0,0.69872652]
[1737273257008,1e-08,105160.0,105150.0,0.66230616]
[1737273257186,1e-08,105160.0,105150.0,0.69871354]
[1737273258672,1e-08,105160.0,105150.0,0.61731354]
[1737273259697,0.07500001,105160.0,105150.0,0.61731354]
[1737273261056,0.07500001,105160.0,105150.0,0.62326102]
[1737273261405,1e-08,105160.0,105150.0,0.62326102]
[1737273262379,1e-08,105160.0,105150.0,0.61731354]
[1737273262587,1e-08,105160.0,105150.0,0.58685379]
[1737273263316,1e-08,105160.0,105150.0,0.6254898]
[1737273264108,1e-08,105160.0,105150.0,0.61644034]
[1737273264511,1e-08,105160.0,105150.0,0.61733893]
[1737273265445,0.08079797,105170.0,105160.0,0.30584804]
[1737273265668,0.08079797,105170.0,105160.0,0.46493463]
[1737273266692,0.08079797,105170.0,105160.0,0.50135872]
[1737273267226,0.08079797,105170.0,105160.0,0.54134277]
[1737273271061,0.08079797,105170.0,105160.0,0.53672966]
[1737273272265,0.08079797,105170.0,105160.0,0.55099684]
[1737273273720,0.08079797,105170.0,105160.0,0.54966253]
[1737273274554,0.16628751,105170.0,105160.0,0.54966253]
[1737273274762,0.16628751,105170.0,105160.0,0.57979996]
[1737273274967,0.16628751,105170.0,105160.0,0.56553278]
[1737273275168,0.16628751,105170.0,105160.0,0.57281441]
[1737273276684,0.16628751,105170.0,105160.0,0.573713]
[1737273276892,0.2944079,105170.0,105160.0,0.573713]
[1737273277776,0.2944079,105170.0,105160.0,0.58798166]
[1737273278911,0.2944079,105170.0,105160.0,0.58664735]
[1737273279467,0.46523509,105170.0,105160.0,0.57237869]
[1737273280745,0.67876908,105170.0,105160.0,0.57237869]
[1737273283533,0.67876908,105170.0,105160.0,0.573713]
[1737273284571,0.67876908,105170.0,105160.0,0.51727271]
[1737273287314,0.69747656,105170.0,105160.0,0.50820654]
[1737273287867,0.69747656,105170.0,105160.0,0.50687223]
[1737273288067,0.61198702,105170.0,105160.0,0.50687223]
[1737273290041,0.61198702,105170.0,105160.0,0.53317509]
[1737273301033,0.57801626,105170.0,105160.0,0.53317509]
[1737273301445,0.55930878,105170.0,105160.0,0.53317509]
[1737273301643,0.51248157,105170.0,105160.0,0.53317509]
[1737273303674,0.51262361,105170.0,105160.0,0.53317509]
[1737273304607,0.51262361,105170.0,105160.0,0.53309547]
[1737273305326,0.59812911,105170.0,105160.0,0.53309547]
[1737273306287,0.51262361,105170.0,105160.0,0.53309547]
[1737273312062,0.51305151,105170.0,105160.0,0.53309547]
[1737273314367,0.38493112,105170.0,105160.0,0.53309547]
[1737273316775,0.51317154,105170.0,105160.0,0.53309547]
[1737273317713,0.51317154,105170.0,105160.0,0.52714815]
[1737273317877,0.5986742,105170.0,105160.0,0.52714815]
[1737273318319,0.5986742,105170.0,105160.0,0.53621432]
[1737273322195,0.51317154,105170.0,105160.0,0.53621432]
[1737273323675,0.51317154,105170.0,105160.0,0.5960601]
[1737273323856,0.3501568,105170.0,105160.0,0.6941601]
[1737273324070,0.26741202,105170.0,105160.0,0.6941601]
[1737273324464,0.24839502,105170.0,105160.0,0.6941601]
[1737273325128,0.21036102,105170.0,105160.0,0.6941601]
[1737273325334,0.21200391,105180.0,105170.0,0.302214]
[1737273325542,0.21205367,105180.0,105170.0,0.52114637]
[1737273326352,0.01670531,105180.0,105170.0,0.55623806]
[1737273328321,0.01670531,105180.0,105170.0,0.55604578]
[1737273328887,0.01670531,105180.0,105170.0,0.63114578]
[1737273330710,0.01670531,105180.0,105170.0,0.64065677]
[1737273332020,0.01670531,105180.0,105170.0,0.56555677]
[1737273332439,0.01670531,105180.0,105170.0,0.55366202]
[1737273333487,0.11358023,105190.0,105180.0,0.095075]
[1737273333685,0.11358023,105190.0,105180.0,0.21476656]
[1737273334842,0.11358023,105190.0,105180.0,0.23022973]
[1737273335188,0.11358023,105190.0,105180.0,0.17038395]
[1737273335591,0.41276688,105190.0,105180.0,0.17335874]
[1737273336133,0.41276688,105190.0,105180.0,0.23320452]
[1737273337536,0.41276688,105190.0,105180.0,0.53957533]
[1737273337748,0.36572865,105190.0,105180.0,0.56780139]
[1737273338073,0.23263765,105190.0,105180.0,0.64290139]
[1737273338276,0.21362465,105190.0,105180.0,0.64290139]
[1737273338476,0.19461165,105190.0,105180.0,0.64290139]
[1737273338826,0.19461165,105190.0,105180.0,0.65479506]
[1737273339012,0.67901252,105200.0,105190.0,0.302196]
[1737273339213,0.67901252,105200.0,105190.0,0.46128259]
[1737273340178,0.67901252,105200.0,105190.0,0.47971682]
[1737273340385,0.67906228,105200.0,105190.0,0.47971682]
[1737273340587,0.5508473,105200.0,105190.0,0.47971682]
[1737273343251,0.55058295,105200.0,105190.0,0.47971682]
[1737273344191,0.55058295,105200.0,105190.0,0.48898082]
[1737273345430,0.55058295,105200.0,105190.0,0.42913504]
[1737273345631,0.55058295,105200.0,105190.0,0.48898082]
[1737273347619,0.55058295,105200.0,105190.0,0.48880502]
[1737273349130,0.55058295,105200.0,105190.0,0.49356189]
[1737273350711,0.63058295,105200.0,105190.0,0.49356189]
[1737273357729,0.63058295,105200.0,105190.0,0.2773453]
[1737273357914,0.63058295,105200.0,105190.0,0.33719108]
[1737273358991,1.01482087,105200.0,105190.0,0.32767758]
[1737273359883,1.11482087,105200.0,105190.0,0.2585678]
[1737273360041,1.11482087,105200.0,105190.0,0.10398673]
[1737273360269,1.47819485,105200.0,105190.0,0.10398673]
[1737273360462,1.63728144,105200.0,105190.0,0.10398673]
[1737273360675,1.53728144,105200.0,105190.0,0.10488532]
[1737273361097,1.38735685,105200.0,105190.0,0.10488532]
[1737273361296,1.38735685,105200.0,105190.0,0.09893938]
[1737273361643,1.42256807,105200.0,105190.0,0.09596459]
[1737273361869,0.98371616,105200.0,105190.0,0.09596459]
[1737273362032,1.04356194,105200.0,105190.0,0.09596459]
[1737273362813,0.98371616,105200.0,105190.0,0.09596459]
[1737273363015,1.01591359,105200.0,105190.0,0.09596459]
[1737273363220,1.07575937,105200.0,105190.0,0.09596459]
[1737273365529,1.48966948,105200.0,105190.0,0.09596459]
[1737273367752,1.50872561,105200.0,105190.0,0.09596459]
[1737273367955,1.0948155,105200.0,105190.0,0.09596459]
[1737273371249,1.1002955,105200.0,105190.0,0.09552328]
[1737273373804,1.0948155,105200.0,105190.0,0.09552328]
[1737273374209,1.1002955,105200.0,105190.0,0.09552328]
[1737273374838,1.35613745,105200.0,105190.0,0.09552328]
[1737273375744,1.35613745,105200.0,105190.0,0.00089859]
[1737273376006,0.19902459,105180.0,105170.0,0.28980631]
[1737273376223,0.35811118,105180.0,105170.0,0.28980631]
[1737273376595,0.20818659,105180.0,105170.0,0.28980631]
[1737273376796,0.14834081,105180.0,105170.0,0.28980631]
[1737273378567,0.63182955,105180.0,105170.0,0.28980631]
[1737273378926,0.71332955,105180.0,105170.0,0.28980631]
[1737273379979,0.85880214,105180.0,105170.0,0.28980631]
[1737273380177,0.70887755,105180.0,105170.0,0.28980631]
[1737273380401,0.85880214,105180.0,105170.0,0.28980631]
[1737273380611,0.70887755,105180.0,105170.0,0.28980631]
[1737273380811,0.85880214,105180.0,105170.0,0.43980631]
[1737273381269,0.98659032,105180.0,105170.0,0.43980631]
[1737273381682,1.00525604,105180.0,105170.0,0.43980631]
[1737273384431,1.00497504,105180.0,105170.0,0.43980631]
[1737273384825,1.09012967,105180.0,105170.0,0.43980631]
[1737273388218,0.88487976,105180.0,105170.0,0.28980631]
[1737273388422,0.91941669,105180.0,105170.0,0.28980631]
[1737273388634,0.90997123,105180.0,105170.0,0.00457631]
[1737273388833,0.90997123,105180.0,105160.0,0.19461701]
[1737273388834,0.1278,105170.0,105160.0,0.19461701]
[1737273389037,0.28688659,105170.0,105160.0,0.28970301]
[1737273389261,0.29236659,105170.0,105160.0,0.28970301]
[1737273389460,0.23252081,105170.0,105160.0,0.28970301]
[1737273390916,0.48817997,105170.0,105160.0,0.28970301]
[1737273394399,0.70088679,105170.0,105160.0,0.28970301]
[1737273395408,0.48817997,105170.0,105160.0,0.28970301]
[1737273396357,0.48860797,105170.0,105160.0,0.28970301]
[1737273396560,0.23294881,105170.0,105160.0,0.28970301]
[1737273397796,0.70125711,105170.0,105160.0,0.28970301]
[1737273400145,0.48860797,105170.0,105160.0,0.28970301]
[1737273401086,0.48312797,105170.0,105160.0,0.28970301]
[1737273401301,0.45532797,105170.0,105160.0,0.28970301]
[1737273402538,0.58266253,105170.0,105160.0,0.28970301]
[1737273403658,0.4124431,105170.0,105160.0,0.28970301]
[1737273407089,0.45532797,105170.0,105160.0,0.28970301]
[1737273408599,0.35608716,105170.0,105160.0,0.28970301]
[1737273409075,0.41499602,105170.0,105160.0,0.28970301]
[1737273410043,0.31348166,105170.0,105160.0,0.28970301]
[1737273411413,0.36340625,105170.0,105160.0,0.34957631]
[1737273411565,0.36340625,105170.0,105160.0,0.57547631]
[1737273412192,0.21348166,105170.0,105160.0,0.57547631]
[1737273412407,0.53388354,105170.0,105160.0,0.57547631]
[1737273413899,0.53388354,105170.0,105160.0,0.51560301]
[1737273414642,0.71528354,105170.0,105160.0,0.43970301]
[1737273415040,0.87439765,105170.0,105160.0,0.43970301]
[1737273415281,0.72447306,105170.0,105160.0,0.28970301]
[1737273415690,0.62447306,105170.0,105160.0,0.28970301]
[1737273416106,0.56459976,105170.0,105160.0,0.28970301]
[1737273416309,0.43672797,105170.0,105160.0,0.28970301]
[1737273417336,0.77930128,105170.0,105160.0,0.28970301]
[1737273419846,0.77972928,105170.0,105160.0,0.28970301]
[1737273420044,0.46641184,105170.0,105160.0,0.28970301]
[1737273430412,0.54753547,105170.0,105160.0,0.28970301]
[1737273431353,0.46641184,105170.0,105160.0,0.28970301]
[1737273431969,0.47189184,105170.0,105160.0,0.28970301]
[1737273434530,0.46641184,105170.0,105160.0,0.32770301]
[1737273435666,0.18005681,105170.0,105160.0,0.32770301]
[1737273436705,0.56358746,105170.0,105160.0,0.56080301]
[1737273436901,0.46358746,105170.0,105160.0,0.56080301]
[1737273437111,0.15035259,105170.0,105160.0,0.56080301]
[1737273437316,0.15035259,105170.0,105160.0,0.6124706]
[1737273437515,0.000428,105170.0,105160.0,0.67233772]
[1737273437710,0.000428,105170.0,105160.0,0.84197853]
[1737273437711,1e-06,105170.0,105160.0,0.84197853]
[1737273437945,1e-06,105170.0,105160.0,0.89910853]
[1737273438241,1e-06,105170.0,105160.0,0.90910853]
[1737273438440,1e-06,105170.0,105160.0,0.96897565]
[1737273438787,0.16099713,105170.0,105160.0,0.94360017]
[1737273438989,0.12296713,105170.0,105160.0,0.97872393]
[1737273439316,0.06592213,105170.0,105160.0,1.0060812]
[1737273439518,0.06592213,105170.0,105160.0,1.048405]
[1737273440076,0.08575534,105190.0,105180.0,0.325775]
[1737273440278,0.08575534,105190.0,105180.0,0.38221739]
[1737273440482,0.08575534,105190.0,105180.0,0.46324641]
[1737273441054,0.08575534,105190.0,105180.0,0.46919364]
[1737273441243,0.0004279,105190.0,105180.0,0.46919364]
[1737273443889,0.0004279,105190.0,105180.0,0.46324641]
[1737273444118,0.0004279,105190.0,105180.0,0.58548722]
[1737273446552,0.0004279,105190.0,105180.0,0.63138722]
[1737273446880,9e-07,105190.0,105180.0,0.71241624]
[1737273447444,9e-07,105190.0,105180.0,0.71836262]
[1737273447652,0.50021865,105200.0,105190.0,0.35470268]
[1737273447860,0.44318565,105200.0,105190.0,0.67021721]
[1737273448071,0.31010865,105200.0,105190.0,0.82124721]
[1737273448669,0.31010865,105200.0,105190.0,0.82719359]
[1737273448985,0.27208665,105200.0,105190.0,0.86846564]
[1737273449221,0.21505365,105200.0,105190.0,0.86846564]
[1737273449821,0.21505365,105200.0,105190.0,0.8779785]
[1737273450030,0.21505365,105200.0,105190.0,0.6478485]
[1737273450237,0.21505365,105200.0,105190.0,0.62211282]
[1737273450450,0.21505365,105200.0,105190.0,0.65233147]
[1737273450658,0.21505365,105200.0,105190.0,0.67533147]
[1737273450860,0.21505365,105200.0,105190.0,0.74430245]
[1737273451121,0.21505365,105200.0,105190.0,0.72884321]
[1737273451420,0.21505365,105200.0,105190.0,0.72587094]
[1737273451856,0.21505365,105200.0,105190.0,0.72039094]
[1737273452195,0.21505365,105200.0,105190.0,0.71039094]
[1737273452416,0.21505365,105200.0,105190.0,0.68017229]
[1737273454054,0.21505365,105200.0,105190.0,0.65213561]
[1737273454570,0.21505365,105200.0,105190.0,0.6530342]
[1737273455302,0.21548155,105200.0,105190.0,0.6530342]
[1737273456368,0.21548155,105200.0,105190.0,0.6071342]
[1737273456866,0.21548155,105200.0,105190.0,0.40386437]
[1737273457075,0.21548155,105200.0,105190.0,0.28396459]
[1737273462672,0.21548155,105200.0,105190.0,0.30668149]
[1737273463126,0.21548155,105200.0,105190.0,0.38771051]
[1737273465890,0.21548155,105200.0,105190.0,0.30668149]
[1737273467218,0.21548155,105200.0,105190.0,0.31262807]
[1737273468222,0.21548155,105200.0,105190.0,0.31560136]
[1737273471065,0.21548155,105200.0,105190.0,0.39663038]
[1737273472165,0.21548155,105200.0,105190.0,0.57596119]
[1737273473244,0.21548155,105200.0,105190.0,0.58547499]
[1737273473933,0.21548155,105200.0,105190.0,0.59023189]
[1737273475509,0.21548155,105200.0,105190.0,0.72103189]
[1737273475714,0.21548155,105200.0,105190.0,0.77650387]
[1737273482624,0.21548155,105200.0,105190.0,0.78650387]
[1737273485515,0.21548155,105200.0,105190.0,0.70829355]
[1737273485994,0.21548155,105200.0,105190.0,0.54446453]
[1737273486752,0.21548155,105200.0,105190.0,0.53446453]
[1737273487574,0.21548155,105200.0,105190.0,0.35513372]
[1737273487779,0.26378155,105200.0,105190.0,0.30715516]
[1737273487955,0.21548155,105200.0,105190.0,0.30715516]
[1737273489375,0.30080899,105200.0,105190.0,0.30715516]
[1737273489551,0.30080899,105200.0,105190.0,0.29288446]
[1737273489758,0.37750899,105200.0,105190.0,0.29288446]
[1737273490505,0.50550015,105200.0,105190.0,0.29288446]
[1737273492635,0.65380015,105200.0,105190.0,0.29288446]
[1737273493819,0.65380015,105200.0,105190.0,0.28991117]
[1737273494040,0.65380015,105200.0,105190.0,0.28396459]
[1737273494216,0.9524462,105200.0,105190.0,0.28396459]
[1737273495285,0.82445504,105200.0,105190.0,0.28396459]
[1737273495710,0.82445504,105200.0,105190.0,0.24596459]
[1737273496020,0.82445504,105200.0,105190.0,0.28396459]
[1737273498020,0.97437963,105200.0,105190.0,0.28396459]
[1737273498421,1.07362044,105200.0,105190.0,0.13396459]
[1737273498623,0.99978187,105200.0,105190.0,0.13396459]
[1737273498831,0.99978187,105200.0,105190.0,0.09596459]
[1737273498988,0.91875285,105200.0,105190.0,0.09596459]
[1737273499589,0.91875285,105200.0,105190.0,0.00089859]
[1737273499792,0.82285938,105200.0,105190.0,0.09596459]
[1737273499999,0.82285938,105200.0,105190.0,0.00089859]
[1737273500199,0.9038884,105200.0,105190.0,0.00089859]
[1737273501026,1.00312921,105200.0,105190.0,0.00089859]
[1737273501316,0.82833938,105200.0,105190.0,0.00089859]
[1737273502233,0.9093684,105200.0,105190.0,0.00089859]
[1737273502431,1.049028,105200.0,105190.0,0.00089859]
[1737273503788,0.62128838,105200.0,105190.0,0.00089859]
[1737273504726,0.61580838,105200.0,105190.0,0.00089859]
[1737273504932,0.62128838,105200.0,105190.0,0.00089859]
[1737273505833,0.90857456,105200.0,105190.0,0.00089859]
[1737273506653,0.90857456,105200.0,105190.0,0.09596459]
[1737273507740,0.90857456,105200.0,105190.0,0.00089859]
[1737273509283,1.33631418,105200.0,105190.0,0.00089859]
[1737273511012,1.43555499,105200.0,105190.0,0.00089859]
[1737273511590,1.51658401,105200.0,105190.0,0.00089859]
[1737273512750,1.4173432,105200.0,105190.0,0.00089859]
[1737273513301,1.33631418,105200.0,105190.0,0.00089859]
[1737273513526,1.049028,105200.0,105190.0,0.00089859]
[1737273513723,1.049028,105200.0,105190.0,7.53e-06]
[1737273514327,1.13005702,105200.0,105190.0,7.53e-06]
[1737273514533,0.7023174,105200.0,105190.0,7.53e-06]
[1737273514950,0.54025936,105200.0,105190.0,7.53e-06]
[1737273515152,0.7023174,105200.0,105190.0,7.53e-06]
[1737273515379,1.37929783,105200.0,105190.0,7.53e-06]
[1737273522010,1.66565873,105200.0,105190.0,7.53e-06]
[1737273522603,0.14992459,105170.0,105160.0,0.28970501]
[1737273522742,0.2491654,105170.0,105160.0,0.28970501]
[1737273522943,0.2491654,105170.0,105160.0,0.32770501]
[1737273524692,0.6310005,105170.0,105160.0,0.32770501]
[1737273525386,0.65718893,105170.0,105160.0,0.13753001]
[1737273525530,0.65718893,105170.0,105160.0,0.04244401]
[1737273525766,0.65718893,105170.0,105160.0,0.13753701]
[1737273526155,0.65718893,105170.0,105160.0,0.09953701]
[1737273526597,0.65718893,105170.0,105160.0,0.00444401]
[1737273526915,0.65718894,105170.0,105160.0,0.09953701]
[1737273527161,0.66690742,105170.0,105160.0,0.09953701]
[1737273527509,0.57182342,105170.0,105160.0,0.09953701]
[1737273528078,0.4907944,105170.0,105160.0,0.09953701]
[1737273528896,0.50993331,105170.0,105160.0,0.09953701]
[1737273529280,0.6373176,105170.0,105160.0,0.09953701]
[1737273533311,0.50993331,105170.0,105160.0,0.09953701]
[1737273533925,0.50021483,105170.0,105160.0,0.09953701]
[1737273534399,0.49586483,105170.0,105160.0,0.09953701]
[1737273534615,0.64578942,105170.0,105160.0,0.09953701]
[1737273534859,0.49586483,105170.0,105160.0,0.09953701]
[1737273536089,0.64578942,105170.0,105160.0,0.09953701]
[1737273536273,0.49586483,105170.0,105160.0,0.09953701]
[1737273536646,0.64578942,105170.0,105160.0,0.09953701]
[1737273537059,0.49586483,105170.0,105160.0,0.09953701]
[1737273537681,0.49586483,105170.0,105160.0,0.18183701]
[1737273538091,0.32616034,105170.0,105160.0,0.18183701]
[1737273538500,0.38604719,105170.0,105160.0,0.09953701]
[1737273539284,0.69687058,105170.0,105160.0,0.09953701]
[1737273540142,0.38604719,105170.0,105160.0,0.09953701]
[1737273540344,0.32616034,105170.0,105160.0,0.09953701]
[1737273540668,0.38604719,105170.0,105160.0,0.09953701]
[1737273542054,0.32616034,105170.0,105160.0,0.09953701]
[1737273542232,0.36858646,105170.0,105160.0,0.09953701]
[1737273543273,0.42847331,105170.0,105160.0,0.09953701]
[1737273543921,0.7400335,105170.0,105160.0,0.09953701]
[1737273544872,0.42847331,105170.0,105160.0,0.09953701]
[1737273545736,0.71483421,105170.0,105160.0,0.09953701]
[1737273547054,0.46027747,105170.0,105160.0,0.09953701]
[1737273548253,0.77155289,105170.0,105160.0,0.09953701]